fUSD/lending_fUSD_20251115
["ID","MTS","AMOUNT","RATE_DAILY","PERIOD"]
[394041779,1763215832635,-700.0,0.000179,6]
[394041780,1763215832645,-5394.92650072,0.000179,2]
[394041781,1763215832654,-163.46148029,0.000179,2]
[394041782,1763215832663,-153.48334863,0.000179,2]
[394041783,1763215832672,-2771.15417276,0.000179,2]
[394041784,1763215832681,-500.0,0.00017973,2]
[394041785,1763215832690,-592.81498937,0.00017973,2]
[394041786,1763215832699,-330.24836993,0.00017973,2]
[394041787,1763215832709,-222.98349588,0.00017973,2]
[394041788,1763215832718,-173.78542732,0.00017973,2]
[394041789,1763215832727,-500.59935397,0.00017973,2]
[394041790,1763215832736,-530.33053363,0.00017973,2]
[394041791,1763215832745,-500.0,0.00017973,2]
[394041792,1763215832754,-500.52944315,0.00017973,2]
[394041793,1763215832763,-500.0,0.00017973,2]
[394041794,1763215832772,-500.0,0.00017973,2]
[394041795,1763215832781,-500.0,0.00017973,2]
[394041796,1763215832790,-500.0,0.00017973,2]
[394041797,1763215832799,-500.0,0.00017973,2]
[394041798,1763215832808,-500.0,0.00017973,2]
[394041799,1763215832817,-161.93982683,0.00017973,2]
[394041800,1763215832826,-500.33887409,0.00017973,2]
[394041801,1763215832835,-500.0,0.00017973,2]
[394041802,1763215832844,-500.0,0.00017973,2]
[394041803,1763215832853,-903.47,0.00017973,2]
[394041804,1763215832863,-500.0,0.00017982,2]
[394041805,1763215832872,-151.0,0.00017989,2]
[394041806,1763215832880,-151.0,0.00017989,2]
[394041807,1763215832889,-151.0,0.00017989,2]
[394041808,1763215832898,-151.0,0.00017989,2]
[394041809,1763215832908,-151.0,0.00017989,2]
[394041810,1763215832917,-151.0,0.00017989,2]
[394041811,1763215832926,-151.0,0.00017989,2]
[394041812,1763215832935,-151.0,0.00017989,2]
[394041813,1763215832944,-1005.09466175,0.00017999,2]
[394041814,1763215832954,-6765.19826977,0.00017999,2]
[394041815,1763215832966,-6547.37779773,0.00017999,2]
[394041816,1763215832975,-500.0,0.00017999,2]
[394041817,1763215832984,-204.30571111,0.00017999,2]
[394041818,1763215832993,-500.0,0.00017999,2]
[394041819,1763215833003,-500.0,0.00017999,2]
[394041820,1763215833012,-525.85631123,0.00017999,2]
[394041821,1763215833021,-638.16075344,0.00017999,2]
[394041822,1763215833030,-500.0,0.00017999,2]
[394041823,1763215833039,-500.0,0.00017999,2]
[394041824,1763215833048,-414.67783564,0.00017999,2]
[394041825,1763215833057,-409.17744723,0.00017999,2]
[394041826,1763215833066,-500.0,0.00017999,2]
[394041827,1763215833075,-500.0,0.00017999,2]
[394041828,1763215833084,-500.0,0.00017999,2]
[394041829,1763215833093,-493.67478396,0.00017999,2]
[394041830,1763215833102,-500.0,0.00017999,2]
[394041831,1763215833111,-242.46671904,0.00017999,2]
[394041832,1763215833120,-500.0,0.00017999,2]
[394041833,1763215833129,-500.0,0.00017999,2]
[394041834,1763215833138,-500.0,0.00017999,2]
[394041835,1763215833147,-500.0,0.00017999,2]
[394041836,1763215833156,-500.0,0.00017999,2]
[394041837,1763215833165,-500.0,0.00017999,2]
[394041838,1763215833174,-500.0,0.00017999,2]
[394041839,1763215833183,-500.0,0.00017999,2]
[394041840,1763215833192,-500.0,0.00017999,2]
[394041841,1763215833201,-500.0,0.00017999,2]
[394041842,1763215833211,-500.0,0.00017999,2]
[394041843,1763215833220,-500.0,0.00017999,2]
[394041844,1763215833229,-500.0,0.00017999,2]
[394041845,1763215833238,-500.0,0.00017999,2]
[394041846,1763215833247,-500.0,0.00017999,2]
[394041847,1763215833256,-500.0,0.00017999,2]
[394041848,1763215833265,-500.0,0.00017999,2]
[394041849,1763215833274,-500.0,0.00017999,2]
[394041850,1763215833283,-500.0,0.00017999,2]
[394041851,1763215833292,-500.0,0.00017999,2]
[394041852,1763215833301,-281.41858988,0.00017999,2]
[394041853,1763215833310,-319.99779707,0.00017999,2]
[394041854,1763215833321,-180.00220293,0.00017999,2]
[394041855,1763215833330,-228.91779707,0.00018,2]
[394041856,1763215833341,-2057.25913075,0.00018,2]
[394041857,1763215833352,-95823.8598498,0.00018,2]
[394041858,1763215833367,-887.06669,0.00018,2]
[394041859,1763215834429,-4171.1349736,0.00018,2]
[394041860,1763215834440,-236505.67835957,0.00018,2]
[394041861,1763215834451,-6291.02487015,0.00018,2]
[394041862,1763215834462,-478.705,0.00018,2]
[394041864,1763215838453,-25520.65583907,0.00018,2]
[394041865,1763215838465,-2048.4,0.00018,2]
[394041908,1763215840521,-1082.3877,0.00018,2]
[394041909,1763215840636,-267.9625,0.00018,2]
[394041910,1763215840694,-885.37950006,0.00018,2]
[394041926,1763215844146,-388.13902591,0.00018,2]
[394042986,1763216328376,2341.04,8.725e-05,2]
[394042987,1763216328570,2341.04,9.184e-05,2]
[394042988,1763216328766,2341.04,9.644e-05,2]
[394042989,1763216328973,2341.04,0.00010103,2]
[394042990,1763216329180,635.85,0.00010562,2]
[394042991,1763216329206,1705.19,0.00010562,2]
[394042992,1763216329375,2341.04,0.00011021,2]
[394042993,1763216329573,2341.04,0.0001148,2]
[394042994,1763216329765,2341.04,0.0001194,2]
[394042995,1763216329957,1271.7,0.00012399,2]
[394042996,1763216329984,1069.34,0.00012399,2]
[394042997,1763216330156,2341.04,0.00012858,2]
[394042998,1763216330342,2341.04,0.00013317,2]
[394042999,1763216330544,2341.04,0.00013776,2]
[394043000,1763216330750,1907.55,0.00014236,2]
[394043001,1763216330778,433.49,0.00014236,2]
[394043002,1763216330963,2341.04,0.00014695,2]
[394043003,1763216331156,2341.04,0.00015154,2]
[394043007,1763216431190,150.0,0.00016904,120]
[394043008,1763216461835,210.0,0.00041322,30]
[394043009,1763216696679,91000.0,0.00041322,120]
[394043010,1763216753743,10000.01,0.000156,2]
[394043011,1763216753769,10000.01,0.000156,2]
[394043012,1763216753798,10000.01,0.000156,2]
[394043013,1763216753823,10000.01,0.000156,2]
[394043014,1763216753859,6632.57178494,0.000156,2]
[394043015,1763216759332,72793.91200189,0.00041322,30]
[394043016,1763216761523,18100.79771263,0.00041322,120]
[394043017,1763216773992,166.66,0.00015515,2]
[394043019,1763216866245,18738.53156546,0.00041322,120]
[394043022,1763216904507,33571.3259054,0.00041322,120]
[394043023,1763216909653,90531.22294026,0.00041322,120]
[394043024,1763216911593,556.63917551,0.00014999,2]
[394043026,1763216916390,2644.13903955,0.0001,2]
[394043027,1763216916413,3534.51981909,0.0001,2]
[394043028,1763216920187,2004.27612311,0.000155,2]
[394043029,1763216948029,298.52414202,0.00015546,2]
[394043042,1763217031499,-2023.14273289,0.00015613,2]
[394043043,1763217031510,-298.19895225,0.00015613,2]
[394043044,1763217031520,-19.69831486,0.00015613,2]
[394043045,1763217031529,-250.0,0.00015646,2]
[394043046,1763217031538,-166.66,0.00015842,2]
[394043047,1763217031547,-2341.04,0.00016072,2]
[394043048,1763217031556,-200.0,0.00016132,2]
[394043049,1763217031565,-300.0,0.00016157,2]
[394043050,1763217031574,-300.0,0.00016157,2]
[394043051,1763217031583,-1200.0,0.00016157,2]
[394043052,1763217031591,-15855.03,0.00016158,2]
[394043053,1763217031600,-166.66,0.00016168,2]
[394043054,1763217031609,-11766.7,0.00016181,2]
[394043055,1763217031619,-1852.42,0.00016237,2]
[394043056,1763217031628,-298.52414201,0.00016271,2]
[394043057,1763217031637,-668.61,0.00016364,2]
[394043058,1763217031646,-162.77,0.00016369,2]
[394043059,1763217031655,-150.0,0.00016398,2]
[394043060,1763217031667,-166.66,0.00016495,2]
[394043061,1763217031676,-1200.0,0.00016531,2]
[394043062,1763217031686,-2341.04,0.00016532,2]
[394043063,1763217031695,-736.44,0.00016603,2]
[394043064,1763217031704,-168.06,0.00016655,2]
[394043065,1763217031713,-1154.23,0.00016749,2]
[394043066,1763217031722,-166.66,0.00016822,2]
[394043068,1763217031731,-150.0,0.00016904,2]
[394043070,1763217031740,-500.0,0.00016973,2]
[394043071,1763217031749,-503.86217753,0.00016973,2]
[394043072,1763217031758,-500.0,0.00016973,2]
[394043073,1763217031767,-500.0,0.00016973,2]
[394043074,1763217031776,-500.0,0.00016973,2]
[394043075,1763217031785,-500.0,0.00016973,2]
[394043076,1763217031794,-429.6404619,0.00016973,2]
[394043077,1763217031803,-550.0,0.0001699,2]
[394043078,1763217031812,-2341.04,0.00016991,2]
[394043080,1763217031821,-298.52414201,0.00016995,2]
[394043081,1763217031831,-500.0,0.00016999,2]
[394043082,1763217031841,-500.0,0.00016999,2]
[394043083,1763217031850,-415.82963545,0.00016999,2]
[394043084,1763217031860,-133924.30967391,0.00017,2]
[394043085,1763217031870,-415.272,0.00017095,2]
[394043086,1763217031879,-166.66,0.00017148,2]
[394043087,1763217031888,-300.0,0.00017175,2]
[394043088,1763217031896,-1102.32270501,0.00017175,2]
[394043089,1763217031907,-300.0,0.00017175,2]
[394043090,1763217031916,-195.0,0.00017175,2]
[394043091,1763217031925,-250.0,0.00017175,2]
[394043092,1763217031937,-250.0,0.00017175,2]
[394043093,1763217031949,-150.92577583,0.00017195,2]
[394043094,1763217031958,-2341.04,0.0001745,2]
[394043095,1763217031967,-2000.0,0.000175,2]
[394043096,1763217031976,-300.0,0.00017509,2]
[394043097,1763217031986,-150.0,0.00017509,2]
[394043098,1763217031996,-500.0,0.00017521,2]
[394043099,1763217032005,-1000.0,0.00017521,2]
[394043100,1763217032016,-500.0,0.00017521,2]
[394043101,1763217032026,-671.17101886,0.00017521,2]
[394043102,1763217032036,-222.2113773,0.00017536,2]
[394043103,1763217032046,-600.0,0.000176,6]
[394043104,1763217032057,-420.0,0.00017662,2]
[394043105,1763217032066,-420.0,0.00017662,2]
[394043106,1763217032076,-1300.0,0.000177,6]
[394043107,1763217032085,-1000.0,0.00017743,2]
[394043108,1763217032094,-1680.0,0.0001775,2]
[394043109,1763217032103,-2000.0,0.000178,6]
[394043110,1763217032111,-296.54,0.00017806,2]
[394043111,1763217032120,-720.0,0.0001787,2]
[394043112,1763217032128,-720.0,0.00017875,2]
[394043113,1763217032137,-5634.56548712,0.000179,2]
[394043114,1763217032146,-153.48334863,0.000179,2]
[394043115,1763217032155,-1265.82604785,0.000179,2]
[394043116,1763217032166,-10039.57335215,0.000179,2]
[394043117,1763217032175,-2700.0,0.000179,6]
[394043118,1763217032184,-1000.0,0.000179,2]
[394043119,1763217032193,-3788.61620024,0.000179,2]
[394043121,1763217037471,-1858.97379976,0.000179,2]
[394043122,1763217037481,-1000.0,0.000179,2]
[394043123,1763217037490,-163.46148028,0.000179,2]
[394043124,1763217037499,-3424.6649,0.000179,2]
[394043125,1763217037508,-1959.72062396,0.000179,2]
[394043126,1763217037589,-540.27937604,0.000179,2]
[394043127,1763217037598,-1348.10062396,0.000179,2]
[394043128,1763217039429,-262.5,0.000179,2]
[394043156,1763217045583,-883.43813147,0.000179,2]
[394043157,1763217045594,-720.0,0.00017958,2]
[394043158,1763217045603,-500.0,0.00017973,2]
[394043159,1763217045612,-500.0,0.00017973,2]
[394043160,1763217045621,-500.0,0.00017973,2]
[394043161,1763217045631,-500.0,0.00017973,2]
[394043162,1763217045641,-500.0,0.00017973,2]
[394043163,1763217045650,-166.84509353,0.00017973,2]
[394043164,1763217045659,-280.79949591,0.00017973,2]
[394043165,1763217045668,-359.39727919,0.00017973,2]
[394043166,1763217045680,-140.60272081,0.00017973,2]
[394043167,1763217045689,-500.0,0.00017973,2]
[394043168,1763217045698,-501.83907426,0.00017973,2]
[394043169,1763217045707,-500.0,0.00017973,2]
[394043170,1763217045882,-500.0,0.00017973,2]
[394043171,1763217045892,-500.0,0.00017973,2]
[394043172,1763217045901,-150.34604515,0.00017973,2]
[394043173,1763217045911,-500.0,0.00017973,2]
[394043174,1763217045920,-500.0,0.00017973,2]
[394043175,1763217045930,-646.57973683,0.00017973,2]
[394043176,1763217045939,-500.0,0.00017973,2]
[394043177,1763217045953,-500.0,0.00017973,2]
[394043178,1763217045966,-502.41579198,0.00017973,2]
[394043179,1763217045976,-408.53234444,0.00017973,2]
[394043187,1763217257799,375.0,0.00030137,120]
[394043190,1763217843402,999.0,0.00016964,3]
[394043192,1763218140159,159.94,0.00025259,120]
[394043211,1763218182734,92995.89880585,0.00041323,30]
[394043226,1763218231742,-159.94,0.00016839,2]
[394043227,1763218231752,-250.0,0.0001684,2]
[394043228,1763218231761,-10.67810182,0.0001684,2]
[394043229,1763218231772,-2443.15189818,0.0001684,2]
[394043230,1763218231781,-250.0,0.00016899,2]
[394043231,1763218231791,-300.0,0.00016937,2]
[394043232,1763218231800,-300.0,0.00016937,2]
[394043233,1763218231810,-1200.0,0.00016937,2]
[394043234,1763218231819,-655.0,0.00016938,2]
[394043235,1763218231829,-195.0,0.00016938,2]
[394043236,1763218231838,-1348.0481018,0.00016939,2]
[394043237,1763218231909,-12420.3018982,0.00016939,2]
[394043239,1763218231919,-195.0,0.00016991,2]
[394043240,1763218231928,-250.0,0.00017,2]
[394043241,1763218231938,-500.0,0.00017,2]
[394043242,1763218231947,-515.17,0.00017051,2]
[394043243,1763218231957,-200.0,0.00017165,2]
[394043244,1763218231966,-618.66,0.00017347,2]
[394043245,1763218231976,-166.7,0.00017458,2]
[394043246,1763218231987,-6002.89,0.00017528,2]
[394043247,1763218231997,-300.0,0.000176,6]
[394043248,1763218232006,-222.2113773,0.00017623,2]
[394043249,1763218232015,-600.0,0.000177,6]
[394043250,1763218232024,-1844.84455503,0.00017739,2]
[394043251,1763218237616,-667.15544497,0.00017739,2]
[394043252,1763218237626,-2512.0,0.00017779,2]
[394043253,1763218237635,-16966.46300328,0.00017788,2]
[394043254,1763218237648,-1972.29999997,0.00017788,2]
[394043255,1763218237660,-515.63896124,0.00017788,2]
[394043256,1763218237788,-1676.76878117,0.00017788,2]
[394043264,1763218239768,-547.26553036,0.00017788,2]
[394043265,1763218239780,-767.84532846,0.00017788,2]
[394043266,1763218239792,-2762.32373616,0.00017788,2]
[394043321,1763218245851,-282.94999921,0.00017788,2]
[394043338,1763218346856,30102.57660774,0.00041323,30]
[394043341,1763218658859,7035.27454588,0.00041323,30]
[394043350,1763219196198,876.64,8.198e-05,2]
[394043351,1763219196414,876.64,8.629e-05,2]
[394043352,1763219197024,876.64,9.061e-05,2]
[394043353,1763219197063,876.64,9.492e-05,2]
[394043354,1763219197196,876.64,9.924e-05,2]
[394043355,1763219197391,876.64,0.00010355,2]
[394043356,1763219197601,876.64,0.00010787,2]
[394043357,1763219197875,876.64,0.00011218,2]
[394043359,1763219198086,876.64,0.00011649,2]
[394043360,1763219198298,876.64,0.00012081,2]
[394043361,1763219198508,876.64,0.00012512,2]
[394043362,1763219198719,356.97,0.00012944,2]
[394043363,1763219198745,519.67,0.00012944,2]
[394043364,1763219198950,876.64,0.00013375,2]
[394043365,1763219199152,876.64,0.00013807,2]
[394043366,1763219199350,876.64,0.00014238,2]
[394043367,1763219199562,876.64,0.0001467,2]
[394043368,1763219199799,876.64,0.00015101,2]
[394043369,1763219200024,876.64,0.00015532,2]
[394043382,1763219252400,163.85,0.00012812,2]
[394043383,1763219252638,163.85,0.00014093,2]
[394043384,1763219252831,163.85,0.00015374,2]
[394043500,1763219431897,-876.64,0.00015964,2]
[394043502,1763219431906,-250.0,0.00016151,2]
[394043504,1763219431916,-168.67452208,0.00016317,2]
[394043505,1763219431956,-81.32547792,0.00016317,2]
[394043506,1763219431966,-295.37305769,0.00016338,2]
[394043507,1763219431975,-419.23340439,0.00016395,2]
[394043508,1763219431986,-457.40659561,0.00016395,2]
[394043509,1763219431996,-426.06,0.00016438,2]
[394043510,1763219432006,-500.0,0.00016438,2]
[394043511,1763219432015,-492.36347135,0.00016438,2]
[394043512,1763219432024,-1200.0,0.00016449,2]
[394043513,1763219432034,-691.74714763,0.0001645,2]
[394043514,1763219432045,-800.0,0.0001645,2]
[394043515,1763219432067,-49.29789319,0.0001645,2]
[394043516,1763219432077,-210.02,0.00016491,2]
[394043517,1763219432087,-150.0,0.00016577,2]
[394043518,1763219432097,-163.85,0.00016656,2]
[394043519,1763219432107,-300.0,0.00016694,2]
[394043520,1763219432117,-166.0,0.00016694,2]
[394043521,1763219432127,-300.0,0.00016694,2]
[394043522,1763219432137,-1200.0,0.00016695,2]
[394043523,1763219432147,-1000.0,0.00016696,2]
[394043524,1763219432156,-1928.81,0.00016802,2]
[394043525,1763219432166,-7250.33801196,0.00016841,2]
[394043526,1763219432176,-151.0,0.00016917,2]
[394043527,1763219432185,-1000.0,0.00016919,2]
[394043528,1763219432195,-171.61133417,0.00016919,2]
[394043529,1763219432204,-116824.04460786,0.0001692,2]
[394043530,1763219432216,-17084.01438746,0.0001692,2]
[394043531,1763219432227,-55652.28243919,0.0001692,2]
[394043533,1763219432239,-388.81915238,0.0001692,2]
[394043536,1763219432251,-2145.96720213,0.0001692,2]
[394043538,1763219432262,-461.17361602,0.0001692,2]
[394043591,1763219437827,-163.46148028,0.00016917,2]
[394043592,1763219437839,-488.53851959,0.0001692,2]
[394043593,1763219437850,-5552.51701183,0.0001692,2]
[394043594,1763219437862,-28644.63191683,0.0001692,2]
[394043600,1763219439871,-9532.04074671,0.0001692,2]
[394043601,1763219439882,-1897.95925329,0.0001692,2]
[394043602,1763219439901,-346.67562666,0.0001692,2]
[394043603,1763219439911,-1.89837371,0.00016942,2]
[394043604,1763219439943,-2619.75162629,0.00016942,2]
[394043605,1763219439952,-250.0,0.00017,2]
[394043606,1763219439962,-229.42,0.00017007,2]
[394043607,1763219439972,-151.0,0.00017009,2]
[394043608,1763219439982,-151.0,0.00017009,2]
[394043609,1763219439992,-151.0,0.00017009,2]
[394043610,1763219440001,-151.0,0.00017009,2]
[394043611,1763219440011,-92.16452056,0.00017009,2]
[394043612,1763219440023,-58.83547944,0.00017009,2]
[394043613,1763219440033,-201.94195595,0.00017009,2]
[394043614,1763219440043,-229.42,0.0001701,2]
[394043615,1763219440052,-229.42,0.0001701,2]
[394043616,1763219440062,-237.36156548,0.00017014,2]
[394043617,1763219440071,-150.99,0.00017017,2]
[394043618,1763219440081,-2981.51,0.00017017,2]
[394043619,1763219440091,-150.99,0.00017017,2]
[394043620,1763219440100,-4284.77,0.00017017,2]
[394043621,1763219440110,-14476.9,0.00017017,2]
[394043622,1763219440123,-661.13809181,0.00017017,2]
[394043623,1763219440136,-527.15190819,0.00017017,2]
[394043624,1763219440145,-8979.63448265,0.00017017,2]
[394043625,1763219440156,-1020.35551735,0.00017017,2]
[394043626,1763219440166,-484.64448265,0.00017017,2]
[394043627,1763219440177,-966.1785,0.00017017,2]
[394043628,1763219440188,-298.51436949,0.00017017,2]
[394043629,1763219440203,-653.11264786,0.00017017,2]
[394043630,1763219440213,-39.58742743,0.00017017,2]
[394043632,1763219440224,-960.40257257,0.00017017,2]
[394043633,1763219440234,-323.52,0.00017017,2]
[394043634,1763219440245,-453.14,0.00017017,2]
[394043635,1763219440254,-1810.43742743,0.00017017,2]
[394043636,1763219440267,-377.33997814,0.00017017,2]
[394043637,1763219440278,-539.5,0.00017017,2]
[394043642,1763219443124,-3962.11149394,0.00017017,2]
[394043643,1763219443137,-760.89276288,0.00017017,2]
[394043693,1763219446049,-736.64384478,0.00017017,2]
[394043694,1763219446110,-373.96952708,0.00017017,2]
[394043695,1763219446171,-535.266,0.00017017,2]
[394043696,1763219446427,-444.28499744,0.00017017,2]
[394043747,1763219574652,1000.29,0.00041325,120]
[394043748,1763219574903,1000.29,0.00041325,120]
[394043749,1763219575160,1000.29,0.00041325,120]
[394043750,1763219575408,1000.29,0.00041325,120]
[394043751,1763219575648,1000.29,0.00041325,120]
[394043752,1763219575887,1000.29,0.00041325,120]
[394043753,1763219576119,1000.29,0.00041325,120]
[394043754,1763219576355,1000.29,0.00041325,120]
[394043755,1763219576617,1000.29,0.00041325,120]
[394043756,1763219576851,1000.29,0.00041325,120]
[394043757,1763219577084,1000.29,0.00041325,120]
[394043758,1763219577320,1000.29,0.00041325,120]
[394043759,1763219577541,1000.29,0.00041325,120]
[394043760,1763219577779,1000.29,0.00041325,120]
[394043761,1763219578086,1000.29,0.00041325,120]
[394043762,1763219578318,1000.29,0.00041325,120]
[394043763,1763219578574,1000.29,0.00041325,120]
[394043764,1763219578801,1000.29,0.00041325,120]
[394043765,1763219579219,1000.29,0.00041325,120]
[394043766,1763219579444,1000.29,0.00041325,120]
[394043767,1763219579670,1000.29,0.00041325,120]
[394043768,1763219579918,1000.29,0.00041325,120]
[394043769,1763219579974,500.0,0.00041325,30]
[394043770,1763219580335,512.57331968,0.00041325,30]
[394043771,1763219580395,1000.29,0.00041325,120]
[394043772,1763219580541,1000.47879403,0.00041325,120]
[394043773,1763219580723,533.96238442,0.00041325,30]
[394043791,1763220070558,687.87,0.00013699,2]
[394043866,1763220326465,-227.09,0.00031507,120]
[394043867,1763220326486,-500.0,0.000323,120]
[394043868,1763220326508,-227.09,0.00035445,120]
[394043869,1763220326534,-165.0,0.00037,120]
[394043870,1763220326557,-507.78092294,0.00038356,120]
[394043871,1763220326582,-178.70368897,0.00038538,120]
[394043872,1763220326604,-500.0,0.000387,120]
[394043873,1763220326624,-500.0,0.000387,120]
[394043874,1763220326643,-500.0,0.000387,120]
[394043875,1763220326662,-500.0,0.000387,120]
[394043876,1763220326682,-500.0,0.000387,120]
[394043877,1763220326701,-500.0,0.000387,120]
[394043878,1763220326720,-500.0,0.000387,120]
[394043879,1763220326740,-500.0,0.000387,120]
[394043880,1763220326760,-500.0,0.000387,120]
[394043881,1763220326779,-500.0,0.000387,120]
[394043882,1763220326802,-500.0,0.000387,120]
[394043883,1763220326823,-164.03883507,0.00038948,120]
[394043884,1763220326844,-178.70368897,0.00038948,120]
[394043885,1763220326865,-178.70368897,0.00039358,120]
[394043886,1763220326892,-227.09,0.00039384,120]
[394043887,1763220326913,-178.70368897,0.00039768,120]
[394043888,1763220326934,-281.16556556,0.000399,120]
[394043889,1763220326954,-281.16556539,0.000399,120]
[394043890,1763220326975,-281.16556539,0.000399,120]
[394043891,1763220326995,-281.16556539,0.000399,120]
[394043892,1763220327015,-281.16556539,0.000399,120]
[394043893,1763220327035,-281.16556539,0.000399,120]
[394043894,1763220327062,-281.16556539,0.000399,120]
[394043895,1763220327082,-281.16556539,0.000399,120]
[394043896,1763220327103,-281.16556539,0.000399,120]
[394043897,1763220327122,-281.16556539,0.000399,120]
[394043898,1763220327143,-281.16556539,0.000399,120]
[394043899,1763220327163,-281.16556539,0.000399,120]
[394043900,1763220327184,-281.16556539,0.000399,120]
[394043901,1763220327205,-281.16556539,0.000399,120]
[394043902,1763220327225,-281.16556539,0.000399,120]
[394043903,1763220327256,-281.16556539,0.000399,120]
[394043904,1763220327280,-281.16556539,0.000399,120]
[394043905,1763220327301,-281.16556539,0.000399,120]
[394043906,1763220327323,-281.16556539,0.000399,120]
[394043907,1763220327343,-281.16556539,0.000399,120]
[394043908,1763220327366,-478.96003305,0.0004,120]
[394043909,1763220327389,-178.70368897,0.00040178,120]
[394043910,1763220327415,-500.0,0.00040208,120]
[394043911,1763220327436,-500.0,0.00040272,120]
[394043912,1763220327457,-1002.09,0.0004032,120]
[394043913,1763220327479,-178.70368897,0.00040588,120]
[394043914,1763220327501,-500.0,0.00040749,120]
[394043915,1763220327522,-500.0,0.00040749,120]
[394043916,1763220327545,-158.85659551,0.00040998,120]
[394043917,1763220327565,-158.85659551,0.00040998,120]
[394043918,1763220327590,-158.85659551,0.00040998,120]
[394043919,1763220327611,-158.85659551,0.00040998,120]
[394043920,1763220327633,-158.85659551,0.00040998,120]
[394043921,1763220327659,-158.85,0.00040998,120]
[394043922,1763220327681,-158.85659551,0.00040998,120]
[394043923,1763220327702,-158.85659551,0.00040998,120]
[394043924,1763220327724,-158.85659551,0.00040998,120]
[394043925,1763220327746,-158.85659551,0.00040998,120]
[394043926,1763220327769,-158.85659551,0.00040998,120]
[394043927,1763220327792,-158.85659551,0.00040998,120]
[394043928,1763220327816,-158.85659551,0.00040998,120]
[394043929,1763220327838,-158.85659551,0.00040998,120]
[394043930,1763220327860,-158.85659551,0.00040998,120]
[394043931,1763220327883,-158.85659551,0.00040998,120]
[394043932,1763220327906,-158.85659551,0.00040998,120]
[394043933,1763220327928,-158.85659551,0.00040998,120]
[394043934,1763220327951,-158.85659551,0.00040998,120]
[394043935,1763220327974,-158.85,0.00040998,120]
[394043936,1763220327996,-164.03,0.00040998,120]
[394043937,1763220328018,-178.7,0.00040998,120]
[394043938,1763220328039,-283.0,0.00041,120]
[394043939,1763220328064,-500.0,0.00041087,120]
[394043940,1763220328089,-500.0,0.00041087,120]
[394043941,1763220328112,-500.0,0.00041087,120]
[394043942,1763220328137,-500.0,0.00041089,120]
[394043943,1763220328158,-500.0,0.00041094,120]
[394043944,1763220328182,-500.0,0.00041097,120]
[394043945,1763220328203,-500.0,0.00041097,120]
[394043946,1763220328225,-500.0,0.00041097,120]
[394043947,1763220328249,-500.0,0.00041097,120]
[394043948,1763220328270,-500.0,0.00041097,120]
[394043949,1763220328292,-500.0,0.00041097,120]
[394043950,1763220328317,-293.83053217,0.00041097,120]
[394043951,1763220328338,-500.0,0.00041097,120]
[394043952,1763220328361,-500.0,0.00041097,120]
[394043953,1763220328383,-173.07,0.00041097,120]
[394043954,1763220328404,-200.0,0.00041097,120]
[394043955,1763220328441,-354.28492204,0.000413,120]
[394043956,1763220328464,-1000.0,0.00041322,120]
[394043957,1763220328485,-1000.0,0.00041322,120]
[394043958,1763220328507,-1000.0,0.00041322,120]
[394043959,1763220328527,-1000.0,0.00041322,120]
[394043960,1763220328551,-1000.0,0.00041322,120]
[394043961,1763220328572,-1000.0,0.00041322,120]